bitfinex/quotes_SOLUSD_20240827
["timestamp","ask_amount","ask_price","bid_price","bid_amount"]
[1724794160113,6.93616662,150.87,150.85,296.115112]
[1724794160390,50.37369279,150.95,150.85,296.115112]
[1724794160391,50.0,150.86,150.85,326.306312]
[1724794160773,50.0,150.87,150.85,326.306312]
[1724794161290,50.0,150.89,150.85,326.306312]
[1724794161971,7.99117226,150.96,150.86,13.3282]
[1724794162340,50.0,150.94,150.88,33.81099279]
[1724794162598,66.91949279,151.02,150.87,68.44888]
[1724794162599,50.0,150.96,150.9,33.81099279]
[1724794162969,50.0,150.98,150.9,40.43779279]
[1724794163173,50.0,150.98,150.91,45.12549]
[1724794163367,50.0,150.98,150.92,33.81099279]
[1724794163803,50.0,151.0,150.94,33.81099279]
[1724794163972,50.0,151.0,150.95,30.1912]
[1724794165392,50.0,150.97,150.93,13.3282]
[1724794166295,42.23145139,151.01,150.93,13.3282]
[1724794166296,6.6228,151.0,150.93,13.3282]
[1724794166504,56.6221,151.01,150.94,45.0]
[1724794166683,50.0,151.01,150.94,45.0]
[1724794166883,50.0,151.01,150.95,0.25098]
[1724794167192,56.6223,151.01,150.94,45.0]
[1724794167382,6.6227,151.0,150.94,45.0]
[1724794168119,50.0,151.01,150.94,45.0]
[1724794168120,56.6221,151.01,150.94,45.0]
[1724794168282,56.6221,151.01,150.95,0.12549]
[1724794168906,56.6221,151.01,150.95,0.25098]
[1724794169089,50.0,151.05,150.97,30.9495]
[1724794169281,50.0,151.05,150.98,45.12549]
[1724794170203,56.6207,151.05,150.98,45.12549]
[1724794171217,20.0,151.04,150.98,45.12549]
[1724794171504,26.6208,151.04,150.98,45.12549]
[1724794171702,50.0,151.02,150.97,30.9495]
[1724794173985,56.6207,151.04,150.97,30.9495]
[1724794174193,56.6207,151.04,150.98,45.12549]
[1724794174888,50.0,151.04,150.98,45.12549]
[1724794175083,50.0,151.07,151.02,12.6967]
[1724794175287,50.0,151.13,151.03,45.12549]
[1724794175716,50.0,151.13,151.04,0.59920178]
[1724794175892,50.0,151.13,151.03,45.12549]
[1724794176205,6.6164,151.14,151.06,6.6198]
[1724794176407,6.6155,151.16,151.08,12.6967]
[1724794176584,6.6155,151.16,151.09,0.25098]
[1724794176823,6.6155,151.16,151.09,45.25098]
[1724794177802,50.0,151.17,151.09,51.86928]
[1724794178002,50.0,151.19,151.09,51.86928]
[1724794178306,50.0,151.19,151.1,6.6181]
[1724794178618,50.0,151.19,151.11,45.25098]
[1724794179517,56.6141,151.19,151.11,45.25098]
[1724794179886,50.0,151.21,151.12,30.1919]
[1724794180102,56.6135,151.21,151.13,51.74219]
[1724794180304,56.6135,151.21,151.14,0.12549]
[1724794180693,56.6135,151.21,151.15,12.6967]
[1724794181113,50.0,151.21,151.16,45.0]
[1724794181415,6.6129,151.22,151.16,45.0]
[1724794181599,6.6124,151.23,151.16,45.0]
[1724794181791,6.6124,151.23,151.17,0.25098]
[1724794181991,50.0,151.24,151.17,16.78828]
[1724794182194,56.6112,151.26,151.18,45.0]
[1724794182402,56.6112,151.26,151.19,1.57339918]
[1724794182607,56.6112,151.26,151.2,44.21093171]
[1724794182807,56.6112,151.26,151.21,46.32224425]
[1724794183616,0.8285013,151.27,151.21,46.32224425]
[1724794184195,0.8285013,151.27,151.22,0.12549]
[1724794184400,0.8285013,151.27,151.22,1.16567402]
[1724794184602,50.0,151.34,151.26,6.6109]
[1724794184827,56.6078,151.34,151.28,13.2846]
[1724794185209,6.6072,151.35,151.29,45.0]
[1724794185609,6.6072,151.35,151.3,30.7411]
[1724794186632,50.0,151.36,151.3,30.7411]
[1724794186633,50.0,151.38,151.3,30.7411]
[1724794186828,6.6063,151.37,151.31,45.25098]
[1724794187009,50.0,151.38,151.31,45.25098]
[1724794187206,56.606,151.38,151.31,45.25098]
[1724794187509,6.6054,151.39,151.32,0.79648832]
[1724794187726,6.6054,151.39,151.33,0.12549]
[1724794188220,6.6054,151.39,151.32,0.12549]
[1724794188800,6.6049,151.41,151.32,6.73389]
[1724794188995,56.6052,151.4,151.33,45.12549]
[1724794189199,56.6052,151.4,151.34,45.12549]
[1724794189509,50.0,151.4,151.35,1.32113848]
[1724794189707,0.8285013,151.42,151.35,46.32113848]
[1724794190045,0.8285013,151.42,151.37,12.1915]
[1724794190411,0.8285013,151.42,151.38,0.12549]
[1724794190614,0.8285013,151.42,151.38,45.25098]
[1724794191425,0.8285013,151.42,151.38,45.12549]
[1724794191727,0.8285013,151.42,151.38,45.0]
[1724794193303,0.8285013,151.42,151.37,12.1915]
[1724794194127,50.0,151.41,151.37,12.1915]
[1724794195733,6.6051,151.4,151.37,12.1915]
[1724794196039,50.0,151.41,151.37,12.1915]
[1724794196326,0.8285013,151.42,151.37,12.1915]
[1724794197931,6.6046,151.41,151.37,12.1915]
[1724794198230,7.4327013,151.42,151.37,12.1915]
[1724794198623,0.8285013,151.42,151.38,45.12549]
[1724794199029,7.4328013,151.42,151.37,12.1915]
[1724794201532,6.605,151.4,151.37,12.1915]
[1724794201740,0.8285013,151.42,151.37,12.1915]
[1724794202327,0.8285013,151.42,151.38,45.12549]
[1724794202624,7.4326013,151.42,151.38,0.12549]
[1724794202830,6.6045,151.41,151.37,12.1915]
[1724794203129,0.8285013,151.42,151.37,12.1915]
[1724794203334,6.6049,151.41,151.37,12.1915]
[1724794203521,6.6054,151.4,151.37,12.1915]
[1724794204235,6.6046,151.41,151.37,12.1915]
[1724794205039,6.6049,151.41,151.37,12.1915]
[1724794205449,7.4326013,151.42,151.37,12.1915]
[1724794205953,0.8285013,151.42,151.37,12.1915]
[1724794206319,7.4330013,151.42,151.37,12.1915]
[1724794207125,6.6057,151.39,151.37,12.1915]
[1724794207338,0.8285013,151.42,151.37,12.1915]
[1724794207637,35.0,151.38,151.37,12.1915]
[1724794209437,50.0,151.35,151.3,30.9724]
[1724794209736,50.0,151.35,151.28,13.2244]
[1724794209737,6.6085,151.32,151.28,13.2244]
[1724794210338,6.6103,151.28,151.2,45.5183]
[1724794211129,6.6103,151.28,151.2,52.132]
[1724794211339,50.0,151.31,151.21,33.61517885]
[1724794211677,50.0,151.36,151.27,40.22567885]
[1724794211931,6.6072,151.35,151.27,33.61517885]
[1724794212027,6.6072,151.35,151.27,61.47020123]
[1724794212346,50.0,151.34,151.28,0.12549]
[1724794212541,50.0,151.34,151.27,54.85960123]
[1724794213339,50.0,151.34,151.27,12.8163]
[1724794213551,56.6079,151.34,151.27,12.8163]
[1724794214122,6.6086,151.32,151.27,12.8163]
[1724794214349,50.0,151.36,151.28,87.29428123]
[1724794214547,50.0,151.36,151.28,93.90438123]
[1724794214739,50.0,151.28,151.22,12.8163]
[1724794215425,6.6107,151.27,151.22,12.8163]
[1724794215849,56.6093,151.3,151.22,19.4291]
[1724794216052,56.6087,151.32,151.24,6.6119]
[1724794216351,6.609,151.31,151.23,6.6124]
[1724794216527,6.609,151.31,151.24,45.12549]
[1724794216941,6.6093,151.3,151.24,45.12549]
[1724794218039,6.6093,151.3,151.24,0.12549]
[1724794220962,56.6179,151.11,151.03,32.0707]
[1724794221630,50.0,151.11,151.03,32.0707]
[1724794221830,50.0,151.11,151.04,6.6206]
[1724794222060,50.0,151.13,151.06,6.6197]
[1724794222237,50.0,151.13,151.05,42.04330123]
[1724794222941,20.0,151.16,151.02,61.57650123]
[1724794222942,50.0,151.1,151.02,61.57650123]
[1724794223352,50.0,151.12,151.03,6.621]
[1724794224543,50.0,151.1,151.04,45.0]
[1724794224744,50.0,151.1,151.03,6.621]
[1724794225530,50.0,151.08,151.02,12.9117]
[1724794226861,56.619,151.08,151.02,12.9117]
[1724794227062,50.0,151.06,151.02,12.9117]
[1724794227551,42.04330123,151.1,151.0,16.5561]
[1724794227747,50.0,151.04,151.0,16.5561]
[1724794229163,50.0,151.04,150.98,6.6229]
[1724794229557,56.6199,151.06,150.98,6.6229]
[1724794229761,50.0,151.04,150.98,6.6229]
[1724794230952,50.0,151.04,150.99,6.6229]
[1724794231559,50.0,151.04,150.96,16.5598]
[1724794231754,20.0,151.03,150.96,16.5598]
[1724794232067,50.0,151.04,150.96,23.1838]
[1724794232772,56.6208,151.04,150.96,23.184]
[1724794233167,12.4494,151.08,150.95,0.12549]
[1724794233168,6.6221,151.01,150.95,0.12549]
[1724794233357,56.6216,151.02,150.95,0.25098]
[1724794233561,50.0,151.02,150.95,6.87558]
[1724794233872,50.0,151.02,150.95,0.12549]
[1724794234076,50.0,150.95,150.89,13.8307013]
[1724794234249,50.0,150.92,150.89,13.8307013]
[1724794234869,56.6262,150.92,150.89,13.8307013]
[1724794235656,50.0,150.92,150.89,13.8307013]
[1724794235866,6.6269,150.9,150.89,13.8307013]
[1724794236084,56.6264,150.92,150.89,13.8307013]
[1724794236262,6.6264,150.92,150.89,13.8307013]
[1724794238173,50.0,150.94,150.89,13.8307013]
[1724794238380,6.6264,150.92,150.89,13.8307013]
[1724794239348,6.6266,150.91,150.89,13.8307013]
[1724794240779,6.6265,150.91,150.9,0.12549]
[1724794240963,6.626,150.92,150.89,13.8307013]
[1724794241284,50.0,150.96,150.9,0.12549]
[1724794241681,6.6251,150.94,150.9,0.12549]
[1724794242256,6.6246,150.96,150.9,0.25098]
[1724794242559,50.0,150.98,150.9,0.25098]
[1724794243055,50.0,151.0,150.92,42.04330123]
[1724794243254,50.0,150.98,150.92,42.04330123]
[1724794243459,50.0,151.0,150.93,0.12549]
[1724794243679,50.0,151.0,150.9,0.12549]
[1724794243998,50.0,150.97,150.89,13.8307013]
[1724794244169,50.0,150.95,150.89,13.8307013]
[1724794244567,50.0,150.97,150.89,13.8307013]
[1724794244894,6.6253,150.94,150.89,13.8307013]
[1724794245063,12.6133,150.94,150.89,13.8307013]
[1724794245685,6.6258,150.93,150.89,13.8307013]
[1724794246365,6.6258,150.93,150.89,7.8427013]
[1724794246769,6.6258,150.93,150.86,47.2679]
[1724794247070,6.626,150.92,150.86,30.6973]
[1724794247465,6.6265,150.91,150.86,30.6973]
[1724794247889,50.0,150.93,150.86,30.6973]
[1724794247890,6.6269,150.9,150.86,30.6973]
[1724794248383,6.6264,150.91,150.86,30.6973]
[1724794248597,6.6269,150.9,150.86,30.6973]
[1724794248977,6.6264,150.92,150.86,30.6973]
[1724794249274,6.6264,150.92,150.87,0.12549]
[1724794249462,6.6264,150.92,150.87,12.86779]
[1724794250088,6.6264,150.92,150.88,0.12549]
[1724794250468,6.6255,150.94,150.88,0.12549]
[1724794251275,6.6265,150.91,150.88,0.12549]
[1724794251476,6.626,150.92,150.88,0.12549]
[1724794252077,50.0,150.97,150.88,42.16879123]
[1724794252283,50.0,150.97,150.89,0.12549]
[1724794252468,20.0,150.96,150.89,0.12549]
[1724794253608,6.6247,150.95,150.89,0.12549]
[1724794253888,6.6239,150.97,150.89,0.12549]
[1724794254090,50.0,150.99,150.92,42.04330123]
[1724794254279,6.6234,150.98,150.93,0.81347704]
[1724794254478,6.6234,150.98,150.93,0.12549]
[1724794254688,50.0,150.99,150.93,0.12549]
[1724794254893,50.0,150.99,150.92,42.04330123]
[1724794255599,6.6234,150.98,150.92,42.04330123]
[1724794255899,6.6234,150.98,150.93,0.12549]
[1724794256782,6.6252,150.94,150.91,0.12549]
[1724794256973,50.0,150.99,150.91,0.12549]
[1724794256974,6.6243,150.96,150.91,0.12549]
[1724794257172,6.6239,150.97,150.91,0.12549]
[1724794257389,6.6239,150.97,150.92,0.12549]
[1724794257699,6.6239,150.97,150.87,35.9404]
[1724794257700,6.6251,150.95,150.87,35.9404]
[1724794257875,6.6243,150.96,150.88,6.75289]
[1724794258072,50.0,150.97,150.88,6.75289]
[1724794258073,56.6239,150.97,150.88,0.12549]
[1724794258287,50.0,150.97,150.88,0.12549]
[1724794258467,6.6251,150.94,150.88,0.12549]
[1724794258792,6.6247,150.96,150.88,6.75319]
[1724794258974,50.0,150.97,150.87,29.3122]
[1724794259179,6.6256,150.93,150.87,12.7423]
[1724794259388,58.59880123,151.01,150.88,0.25098]
[1724794259389,56.6248,150.95,150.88,0.25098]
[1724794259698,50.0,150.95,150.87,12.7423]
[1724794260074,56.6247,150.95,150.87,12.7423]
[1724794260397,50.0,151.01,150.94,12.4878]
[1724794261175,56.6221,151.01,150.95,45.12549]
[1724794261900,50.0,151.01,150.95,45.12549]
[1724794262195,6.625,150.95,150.9,45.4528]
[1724794262502,50.0,150.97,150.9,45.4528]
[1724794263005,56.624,150.97,150.9,45.4528]
[1724794263503,6.6243,150.96,150.9,45.4528]
[1724794264097,6.6229,151.0,150.9,52.0796]
[1724794264403,26.6229,150.99,150.91,42.04330123]
[1724794264694,6.6229,150.99,150.92,45.0]
[1724794264902,6.6229,150.99,150.93,0.12549]
[1724794265081,6.6229,150.99,150.93,0.25098]
[1724794265272,6.6229,150.99,150.93,1.57565937]
[1724794265472,6.6226,151.0,150.93,1.57565937]
[1724794266401,56.6217,151.02,150.93,8.20115937]
[1724794266581,20.0,151.01,150.93,1.57565937]
[1724794267702,6.6229,150.99,150.93,1.57565937]
[1724794267886,6.6229,150.99,150.93,0.25098]
[1724794268792,20.0,151.01,150.93,42.29428123]
[1724794268977,26.622,151.01,150.94,45.0]
[1724794269304,26.622,151.01,150.95,0.25098]
[1724794269305,6.622,151.01,150.95,0.25098]
[1724794269788,6.622,151.01,150.95,1.46689236]
[1724794270204,6.6241,150.97,150.9,87.49610123]
[1724794270506,50.0,151.02,150.91,45.12549]
[1724794270699,50.0,151.02,150.91,61.69109]
[1724794270905,6.6225,151.0,150.92,48.66920123]
[1724794271092,6.6225,151.0,150.93,45.12549]
[1724794271808,50.0,151.0,150.93,45.0]
[1724794272103,6.6234,150.98,150.94,0.12549]
[1724794272297,56.6228,151.0,150.94,0.12549]
[1724794272504,6.6228,151.0,150.94,0.12549]
[1724794272694,50.0,151.02,150.94,1.57553298]
[1724794272888,66.5521,151.04,150.94,1.57553298]
[1724794273076,6.6225,151.0,150.94,1.57553298]
[1724794273281,6.6225,151.0,150.94,0.25098]
[1724794274208,6.6221,151.01,150.94,0.25098]
[1724794274410,33.092,151.1,150.94,42.29428123]
[1724794274411,50.0,151.05,150.94,42.29428123]
[1724794274581,50.0,151.05,150.95,45.0]
[1724794274906,6.6208,151.04,150.96,6.87508]
[1724794275208,50.0,151.07,150.97,45.0]
[1724794275414,50.0,151.07,150.99,13.2223]
[1724794275591,50.0,151.07,151.0,46.44959968]
[1724794276312,6.6225,151.0,150.99,45.4829]
[1724794276482,6.622,151.02,150.99,45.4829]
[1724794276678,6.6244,150.96,150.94,45.4068]
[1724794276884,66.5564,151.0,150.94,45.4068]
[1724794277110,6.6238,150.97,150.94,45.4068]
[1724794277307,50.0,151.0,150.94,45.4068]
[1724794277507,66.5525,151.04,150.94,45.4068]
[1724794277683,20.0,151.03,150.94,45.4068]
[1724794278007,6.6236,150.98,150.9,45.5285]
[1724794278309,50.0,150.99,150.9,45.5285]
[1724794278502,20.0,150.98,150.9,45.5285]
[1724794278807,26.6237,150.98,150.9,45.5285]
[1724794279007,6.6227,151.0,150.91,42.04330123]
[1724794279216,20.0,151.0,150.91,42.04330123]
[1724794279386,6.6236,150.98,150.91,42.04330123]
[1724794279582,20.0,151.02,150.91,42.04330123]
[1724794279788,20.0,151.02,150.92,0.48568033]
[1724794280403,50.0,151.01,150.93,0.25098]
[1724794280589,20.0,151.0,150.92,0.25098]
[1724794280789,6.6232,150.99,150.92,0.25098]
[1724794280988,6.6232,150.99,150.9,45.5285]
[1724794280989,50.0,150.95,150.9,45.5285]
[1724794281215,6.6255,150.94,150.9,45.5285]
[1724794281512,50.0,151.29,151.13,5.0]
[1724794281806,12.61021921,151.26,151.23,42.04330123]
[1724794281996,50.0,151.29,151.23,42.04330123]
[1724794282707,56.6092,151.31,151.23,42.04330123]
[1724794282886,7.4393013,151.27,151.18,48.8741]
[1724794283092,0.8285013,151.27,151.19,45.0]
[1724794283288,0.8285013,151.27,151.2,6.86468]
[1724794283482,0.8285013,151.27,151.21,51.613]
[1724794283715,0.8285013,151.27,151.22,45.6593738]
[1724794283897,0.8285013,151.27,151.23,6.73779]
[1724794284099,0.8285013,151.27,151.24,46.44739016]
[1724794284404,0.8285013,151.27,151.25,0.12549]
[1724794284601,50.8285013,151.27,151.18,50.47047843]
[1724794284790,50.8285013,151.27,151.19,45.25098]
[1724794285115,50.8285013,151.27,151.19,0.25098]
[1724794285283,50.8285013,151.27,151.2,0.12549]
[1724794285484,50.8285013,151.27,151.19,0.12549]
[1724794285694,0.8285013,151.27,151.19,6.6138]
[1724794285893,0.8285013,151.27,151.2,0.25098]
[1724794286099,0.8285013,151.27,151.2,0.12549]
[1724794286802,57.4393013,151.27,151.17,16.5376]
[1724794287003,0.8285013,151.27,151.17,16.5376]
[1724794287210,0.8285013,151.27,151.17,23.1523]
[1724794287413,0.8285013,151.27,151.19,6.614]
[1724794287710,0.8285013,151.27,151.17,16.5376]
[1724794287912,57.4393013,151.27,151.17,16.5376]
[1724794288129,57.4393013,151.27,151.18,6.73989]
[1724794289203,57.4393013,151.27,151.19,45.12549]
[1724794289405,57.4393013,151.27,151.2,0.12549]
[1724794289717,57.4393013,151.27,151.2,1.44778221]
[1724794291512,0.8285013,151.27,151.2,1.44778221]
[1724794291718,0.8285013,151.27,151.21,0.12549]
[1724794291913,0.8285013,151.27,151.21,1.44761592]
[1724794292101,0.8285013,151.27,151.22,0.12549]
[1724794292609,0.8285013,151.27,151.22,1.44744111]
[1724794292792,0.8285013,151.27,151.23,0.12549]
[1724794293620,0.8285013,151.27,151.23,16.65619]
[1724794293920,0.8285013,151.27,151.24,51.73719]
[1724794294210,0.8285013,151.27,151.25,1.44739587]
[1724794294418,0.8285013,151.27,151.25,0.12549]
[1724794294795,0.8285013,151.27,151.25,1.44724928]
[1724794294989,0.8285013,151.27,151.26,0.12549]
[1724794295809,0.8285013,151.27,151.26,6.73659]
[1724794296019,0.8285013,151.27,151.26,51.86208]
[1724794296224,0.8285013,151.27,151.26,68.38988]
[1724794296397,6.6065,151.37,151.29,6.6097]
[1724794296597,6.6065,151.37,151.3,46.57232657]
[1724794297397,6.6058,151.39,151.3,46.57232657]
[1724794297701,56.6059,151.38,151.3,46.57232657]
[1724794298225,6.6059,151.38,151.3,46.57232657]
[1724794298405,6.6053,151.4,151.32,6.6084]
[1724794298725,12.7889,151.41,151.32,6.6084]
[1724794298726,19.3935,151.41,151.33,51.85858]
[1724794299316,12.7889,151.41,151.34,6.6072]
[1724794299509,50.8285013,151.42,151.35,45.25098]
[1724794300025,57.4326013,151.42,151.35,45.25098]
[1724794300222,50.8285013,151.42,151.35,0.25098]
[1724794300402,50.8285013,151.42,151.35,0.12549]
[1724794300604,50.8285013,151.42,151.34,0.25098]
[1724794300902,0.8285013,151.42,151.34,0.25098]
[1724794301300,27.4326013,151.42,151.34,6.85858]
[1724794301505,27.4326013,151.42,151.35,1.31795314]
[1724794301823,77.4326013,151.42,151.36,1.31786607]
[1724794302319,6.6046,151.41,151.36,1.31786607]
[1724794302631,6.6046,151.41,151.37,1.31760488]
[1724794302811,6.6046,151.41,151.34,1.56858488]
[1724794303315,6.6046,151.41,151.34,0.25098]
[1724794303625,6.6046,151.41,151.33,0.25098]
[1724794304121,6.605,151.4,151.33,0.25098]
[1724794305898,56.605,151.4,151.33,0.25098]
[1724794308232,6.6054,151.39,151.33,0.25098]
[1724794308527,6.6054,151.39,151.33,0.12549]
[1724794309413,6.6054,151.39,151.32,16.5211]
[1724794309620,50.0,151.38,151.29,16.5243]
[1724794309924,56.6067,151.36,151.29,16.5243]
[1724794310403,6.6085,151.32,151.24,6.6119]
[1724794312130,6.6093,151.3,151.23,42.0157157]
[1724794312330,6.6098,151.29,151.23,42.0157157]
[1724794312554,50.0,151.31,151.23,42.0157157]
[1724794313220,6.6101,151.29,151.23,42.0157157]
[1724794313433,50.0,151.28,151.22,32.7226]
[1724794313732,50.0,151.28,151.2,58.5500157]
[1724794313733,6.6107,151.27,151.2,58.5500157]
[1724794314110,6.611,151.27,151.2,42.0157157]
[1724794315227,6.6102,151.29,151.2,48.6294157]
[1724794315745,6.6102,151.29,151.21,0.12549]
[1724794316037,6.6102,151.29,151.21,0.25098]
[1724794316227,56.6094,151.3,151.21,6.86408]
[1724794317140,56.6094,151.3,151.22,6.6127]
[1724794317342,56.6094,151.3,151.23,0.25098]
[1724794318319,50.0,151.3,151.23,0.25098]
[1724794318532,50.0,151.28,151.22,0.25098]
[1724794318912,50.0,151.28,151.22,0.12549]
[1724794319435,50.0,151.32,151.23,16.5301]
[1724794319635,50.0,151.32,151.24,42.2666957]
[1724794319843,50.0,151.32,151.24,48.8785957]
[1724794320016,50.0,151.32,151.24,42.2666957]
[1724794320017,6.6093,151.31,151.24,42.2666957]
[1724794320210,56.6085,151.32,151.24,42.2666957]
[1724794320714,56.6085,151.32,151.25,1.32183164]
[1724794320928,56.6085,151.32,151.26,0.25098]
[1724794321127,56.6085,151.32,151.26,0.12549]
[1724794323740,50.0,151.27,151.1,5.0]
[1724794323924,56.6107,151.27,151.18,6.6145]
[1724794325222,6.6112,151.26,151.16,58.5539157]
[1724794325426,6.6112,151.26,151.17,51.4941]
[1724794325635,6.6112,151.26,151.18,0.12549]
[1724794325811,6.6112,151.26,151.18,0.25098]
[1724794326020,50.0,151.29,151.19,42.0157157]
[1724794326234,50.0,151.29,151.2,0.25098]
[1724794326437,6.6102,151.28,151.2,6.86468]
[1724794327141,50.0,151.27,151.2,0.25098]
[1724794327717,50.0,151.27,151.2,0.12549]
[1724794329320,50.0,151.27,151.2,0.25098]
[1724794331443,6.6104,151.28,151.2,0.25098]
[1724794331746,6.6104,151.28,151.2,51.86468]
[1724794333023,50.0,151.27,151.2,45.25098]
[1724794333221,56.6116,151.25,151.17,44.8795]
[1724794333449,56.6116,151.25,151.17,51.4945]
[1724794333633,6.6111,151.26,151.18,6.6144]
[1724794334244,69.7912,151.27,151.19,6.6141]
[1724794334545,69.7912,151.27,151.2,0.12549]
[1724794334845,62.3046,151.31,151.21,42.0157157]
[1724794335051,62.3046,151.31,151.23,6.6123]
[1724794335252,62.3046,151.31,151.24,45.25098]
[1724794336727,68.9136,151.31,151.24,45.25098]
[1724794337050,6.6094,151.3,151.24,45.25098]
[1724794338025,68.9136,151.31,151.24,45.25098]
[1724794338443,6.6095,151.3,151.24,0.12549]
[1724794338642,68.9135,151.31,151.23,51.86318]
[1724794340350,56.6089,151.31,151.23,51.86318]
[1724794340536,6.6089,151.31,151.23,51.86318]
[1724794340737,6.6085,151.32,151.24,6.6119]
[1724794340951,50.0,151.33,151.25,0.25098]
[1724794341254,6.6098,151.29,151.25,0.25098]
[1724794341430,6.6094,151.3,151.25,0.12549]
[1724794341623,6.6094,151.3,151.24,0.25098]
[1724794342252,6.6089,151.31,151.24,0.25098]
[1724794343136,6.6095,151.3,151.24,0.25098]
[1724794346855,50.0,151.33,151.24,0.25098]
[1724794347033,6.6085,151.32,151.24,0.25098]
[1724794347237,6.609,151.31,151.24,0.25098]
[1724794348329,12.7786,151.35,151.25,82.1007596]
[1724794348535,6.6076,151.34,151.26,51.86198]
[1724794350641,6.6076,151.34,151.26,53.18358304]
[1724794350852,6.6076,151.34,151.27,1.32160305]
[1724794351048,6.6076,151.34,151.28,0.25098]
[1724794351358,6.6076,151.34,151.28,1.57258311]
[1724794351750,50.0,151.37,151.29,1.32160267]
[1724794351751,56.6064,151.37,151.29,1.32160267]
[1724794352054,6.6064,151.37,151.3,1.57236368]
[1724794352760,56.6057,151.39,151.31,40.2659357]
[1724794352942,50.0,151.39,151.32,46.57219902]
[1724794353137,50.0,151.39,151.33,1.32121902]
[1724794353355,56.6055,151.39,151.33,1.32121902]
[1724794355247,50.0,151.37,151.25,59.3251]
[1724794355437,50.0,151.35,151.25,42.7964]
[1724794355638,56.6072,151.35,151.27,6.6105]
[1724794355939,6.6072,151.35,151.27,6.6105]
[1724794356749,6.6072,151.35,151.28,45.25098]
[1724794358164,6.6068,151.36,151.28,51.86108]
[1724794358368,6.6068,151.36,151.28,85.5182157]
[1724794360464,50.0,151.37,151.28,45.25098]
[1724794360655,50.0,151.37,151.28,0.25098]
[1724794360871,6.6068,151.36,151.28,0.25098]
[1724794361056,6.6068,151.36,151.28,6.86118]
[1724794361366,6.6068,151.36,151.29,45.0]
[1724794361546,6.6068,151.36,151.3,0.12549]
[1724794362157,6.6116,151.25,151.2,13.2163]
[1724794362364,50.0,151.3,151.2,13.2163]
[1724794362552,50.0,151.28,151.2,13.2163]
[1724794362866,56.6103,151.28,151.2,13.2163]
[1724794363248,50.0,151.27,151.2,13.2163]
[1724794363443,83.6571357,151.29,151.2,13.2163]
[1724794363767,50.0,151.29,151.2,13.2163]
[1724794364776,50.0,151.29,151.21,0.12549]
[1724794364964,50.0,151.29,151.21,0.25098]
[1724794366347,56.6098,151.29,151.21,0.25098]
[1724794367851,50.0,151.27,151.18,16.5362]
[1724794368674,13.0682,151.34,151.23,12.6574]
[1724794368968,6.6083,151.33,151.25,32.571]
[1724794369175,13.0682,151.34,151.25,32.571]
[1724794369176,19.6759,151.34,151.25,32.571]
[1724794369478,50.0,151.35,151.26,0.25098]
[1724794369650,6.6077,151.34,151.26,0.25098]
[1724794369851,50.0,151.35,151.26,6.86188]
[1724794370073,6.6081,151.33,151.26,0.25098]
[1724794370365,6.6084,151.33,151.26,0.25098]
[1724794371277,56.6074,151.35,151.26,0.25098]
[1724794371456,6.6076,151.34,151.26,0.25098]
[1724794371661,50.0,151.35,151.26,0.25098]
[1724794371860,56.6072,151.35,151.26,0.25098]
[1724794372079,6.6076,151.34,151.26,0.25098]
[1724794372450,56.6085,151.32,151.26,0.12549]
[1724794372658,50.0,151.32,151.25,32.571]
[1724794372857,6.6093,151.31,151.25,32.571]
[1724794373370,50.0,151.32,151.25,32.571]
[1724794373974,6.6094,151.3,151.25,32.571]